[Event "Mitropa Cup Open 2022"]
[Site "Corte"]
[Date "2022.05.07"]
[Round "8.4"]
[White "Deuer, Marius"]
[Black "Fecker, Noah"]
[Result "0-1"]
[ECO "A58"]
[WhiteElo "2359"]
[BlackElo "2387"]
[Annotator "TA"]
[PlyCount "56"]
[EventDate "2022.04.30"]
[EventType "team-tourn"]
[EventCountry "FRA"]
[SourceTitle "playchess.com"]
[Source "ChessBase"]
[SourceQuality "1"]
[WhiteTeam "Germany"]
[BlackTeam "Switzerland"]
[WhiteTeamCountry "GER"]
[BlackTeamCountry "SUI"]
[TimeControl "40/5400+30:1800+30"]

{[%evp 9,56,44,41,33,37,19,35,39,55,-10,41,5,20,32,53,50,47,36,55,60,77,53,108,37,50,59,42,0,0,0,0,-83,-85,-75,-75,-536,-520,-526,-544,-745,-742,-1928,-1839,-29980,-29978,-29996,-29997,-29997,-29998]} 1. d4 {[%emt 0:00:02]} Nf6 {[%emt 0:00:09]} 2. c4 {[%emt 0:00:04]} c5 {[%emt 0:00:08]} 3. d5 {[%emt 0:00:07]} b5 {[%emt 0:00:06]} 4. cxb5 {[%emt 0:00:06]} a6 {[%emt 0:00:05]} 5. bxa6 {[%emt 0:00:14]} e6 {[%emt 0:00:13]} 6. dxe6 {[%emt 0:12:58] A58: Benko/Volga Gambit: Lines with 5 bxa6.} fxe6 {[%emt 0:00:11]} 7. Nf3 {[%emt 0:00:06]} d5 {[%emt 0:02:41]} 8. e3 {[%emt 0:00:31] White is slightly better.} ({Reject} 8. Qa4+ Bd7 9. Qd1 Nxa6 $11) 8... Be7 {[%emt 0:15:37] [#]} 9. Nbd2 $146 {[%emt 0:03:56]} ({White should play} 9. Bb5+ $14 Nbd7 10. Nc3) ({Predecessor:} 9. Bb5+ Bd7 10. Bxd7+ Nbxd7 11. O-O Rxa6 12. Nbd2 Qa8 13. a3 O-O 14. Re1 c4 15. Qc2 {0-1 (26) Dylag,E (2065)-Kubicka,A (2274) Szklarska Poreba 2021}) 9... O-O {[%emt 0:00:59]} (9... c4 $11) 10. Be2 {[%emt 0:02:12]} Nxa6 {[%emt 0:09:03]} 11. b3 $1 {[%emt 0:08:36] Against c4} Nb4 {[%emt 0:08:28]} 12. a3 $1 {[%emt 0:08:28]} Nc6 {[%emt 0:01:50]} 13. Bb2 {[%emt 0:05:07] Prevents e5.} Bb7 {[%emt 0:14:04]} 14. O-O {[%emt 0:00:46]} Qe8 {[%emt 0:00:42]} 15. Qc2 {[%emt 0:10:58] aiming for Ng5.} Rc8 {[%emt 0:01:39]} (15... Bd6 $14) 16. Rfe1 {[%emt 0:07:02]} (16. Ng5 $16 {Threatens to win with Bxf6.} e5 17. Rad1) 16... Bd6 $14 {[%emt 0:07:12]} 17. Bd3 {[%emt 0:06:32]} Qh5 {[%emt 0:09:01]} 18. h3 {[%emt 0:01:56]} e5 {[%emt 0:03:51]} 19. e4 {[%emt 0:00:18] exd5 is the strong threat.} Nd4 {[%emt 0:00:15]} 20. Nxd4 {[%emt 0:02:42]} (20. Bxd4 $11 cxd4 21. Qb1) 20... cxd4 $17 {[%emt 0:00:56]} 21. Qd1 {[%emt 0:01:49]} Qg6 $36 {[%emt 0:02:39][%cal Rd5e4][%mdl 3072] Black has strong compensation. Black is really pushing. Black is more active.} 22. f3 {[%emt 0:06:47][%mdl 8192] [#] Loses the game.} (22. Qb1 $17 {is tougher.}) 22... Nh5 $1 $19 {[%emt 0:00:11]} 23. Bf1 {[%emt 0:00:17]} Nf4 {[%emt 0:01:54]} 24. Kh1 {[%emt 0:01:19] [#]} Ba6 $1 {[%emt 0:01:01][%mdl 512] White must now prevent ...Bxf1.} 25. g4 {[%emt 0:05:10] [#]} (25. Nc4 dxc4) 25... Qh6 $1 {[%emt 0:01:32] ( -> ...Bxf1)} 26. Kg1 {[%emt 0:04:15] [#]} (26. g5 Qxg5) 26... Qh4 $1 {[%emt 0:00:49] Black mates.} 27. exd5 {[%emt 0:04:33]} (27. Nc4 dxc4) 27... Qg3+ {[%emt 0:00:23]} 28. Kh1 {[%emt 0:00:06]} Bxf1 {[%emt 0:00:09][%mdl 64] Remove Defender.  Weighted Error Value: White=0.91/Black=0.11 (very precise)} 0-1

[Event "Mitropa Cup Open 2022"]
[Site "Corte"]
[Date "2022.05.07"]
[Round "8.4"]
[White "Bouslimi, Nabil"]
[Black "Di Benedetto, Edoardo"]
[Result "0-1"]
[ECO "E20"]
[WhiteElo "2065"]
[BlackElo "2401"]
[Annotator "TA"]
[PlyCount "60"]
[EventDate "2022.04.30"]
[EventType "team-tourn"]
[EventCountry "FRA"]
[SourceTitle "playchess.com"]
[Source "ChessBase"]
[SourceQuality "1"]
[WhiteTeam "France"]
[BlackTeam "Italy"]
[WhiteTeamCountry "FRA"]
[BlackTeamCountry "ITA"]
[TimeControl "40/5400+30:1800+30"]

{[%evp 10,60,0,0,0,0,0,0,-3,-3,-12,-3,-9,-6,-7,-25,-17,-55,-42,-73,-97,-84,-83,-85,-85,-88,-84,-93,-91,-106,-113,-125,-108,-109,-115,-375,-368,-415,-407,-568,-567,-1641,-727,-731,-715,-941,-926,-1551,-1279,-1509,-1341,-1154,-1061]} 1. d4 {[%emt 0:00:05]} Nf6 {[%emt 0:00:07]} 2. c4 {[%emt 0:00:05]} e6 {[%emt 0:00:04]} 3. Nc3 {[%emt 0:00:06]} Bb4 {[%emt 0:00:06]} 4. Bd2 {[%emt 0:01:00]} c5 {[%emt 0:01:45]} 5. a3 {[%emt 0:02:46]} Bxc3 {[%emt 0:00:19]} 6. Bxc3 {[%emt 0:00:08]} Ne4 {[%emt 0:00:26] E20: Nimzo-Indian: 4 g3 and 4 f3.} 7. Qc2 {[%emt 0:02:35]} Nxc3 {[%emt 0:00:21]} (7... Qh4 $2 8. g3 Qg4 9. f3 $18) 8. Qxc3 {[%emt 0:00:08]} cxd4 {[%emt 0:00:31] The position is equal.} 9. Qxd4 {[%emt 0:00:22]} O-O {[%emt 0:00:10]} 10. Nf3 {[%emt 0:04:09]} Nc6 {[%emt 0:00:19]} 11. Qc3 {[%emt 0:00:56]} b6 {[%emt 0:01:16] [#]} 12. g3 $146 {[%emt 0:00:44]} ({Predecessor:} 12. e3 Bb7 13. Be2 Rc8 14. b4 Ne7 15. Qb3 d5 16. cxd5 Nxd5 17. O-O Qf6 18. Rfc1 {½-½ (25) Mottinger,A (1845)-Roesel,G (1890) Bayern 1999}) 12... Ba6 {[%emt 0:05:06]} 13. Bg2 {[%emt 0:09:58]} Rc8 {[%emt 0:01:32]} 14. O-O {[%emt 0:09:25]} Na5 {[%emt 0:00:46]} 15. b3 {[%emt 0:00:35]} d5 $1 {[%emt 0:00:06][%cal Rd5c4]} 16. Rfd1 {[%emt 0:02:01]} Qe7 {[%emt 0:03:12][%cal Rd5c4]} 17. Qb4 {[%emt 0:03:17] [#]} Qf6 {[%emt 0:00:52][%cal Rd5c4]} 18. Nd2 {[%emt 0:14:56][%cal Bf3d2,Bd2e4,Be4d6][%mdl 32]} dxc4 {[%emt 0:01:24] Black is more active.} 19. Ne4 {[%emt 0:02:57] [#]} Qe5 {[%emt 0:06:12]} 20. f4 {[%emt 0:12:22]} Qc7 {[%emt 0:08:29]} 21. Nd6 {[%emt 0:05:42]} Rcd8 {[%emt 0:00:40]} ({Reject} 21... cxb3 $6 22. Nxc8 Rxc8 23. Kf2 $15) 22. Rac1 $2 {[%emt 0:04:39][%mdl 8192] Now White is beyond hope.} (22. bxc4 $17 Nxc4 23. Nxc4 Bxc4 24. Rxd8 Rxd8 25. Rc1) 22... Nxb3 $19 {[%emt 0:01:03]} 23. Rc2 {[%emt 0:01:32]} Qc5+ {[%emt 0:01:02]} 24. Kh1 {[%emt 0:02:46]} Nd4 {[%emt 0:00:07] Black is clearly winning.} 25. Nxf7 {[%emt 0:02:25]} Qxb4 {[%emt 0:01:17]} (25... Nxc2 $142 26. Qb1 Nxa3 27. Nxd8 Nxb1 28. Nxe6 Qe3) 26. axb4 {[%emt 0:00:07]} Kxf7 {[%emt 0:01:16]} 27. Rcd2 {[%emt 0:00:10] [#]} c3 $1 {[%emt 0:00:34][%csl LRd2,LRe2][%cal Bc4c3,Bc3c2][%mdl 32]} 28. Rxd4 {[%emt 0:00:04]} (28. Ra2 c2) 28... Rxd4 {[%emt 0:00:15]} 29. Rxd4 {[%emt 0:00:04]} c2 {[%emt 0:00:06]} 30. Rd7+ {[%emt 0:00:10]} Kg8 {[%emt 0:00:04] Weighted Error Value: White=0.97/Black=0.25 (precise)} 0-1

[Event "Mitropa Cup Open 2022"]
[Site "Corte"]
[Date "2022.05.07"]
[Round "8.5"]
[White "Moussard, Jules"]
[Black "Babula, Vlastimil"]
[Result "1/2-1/2"]
[ECO "B42"]
[WhiteElo "2651"]
[BlackElo "2576"]
[Annotator "TA"]
[PlyCount "67"]
[EventDate "2022.04.30"]
[EventType "team-tourn"]
[EventCountry "FRA"]
[SourceTitle "playchess.com"]
[Source "ChessBase"]
[SourceQuality "1"]
[WhiteTeam "France"]
[BlackTeam "Czech Republic"]
[WhiteTeamCountry "FRA"]
[BlackTeamCountry "CZE"]
[TimeControl "40/5400+30:1800+30"]

{[%evp 16,67,27,10,24,11,0,0,7,6,25,14,39,37,41,27,36,37,33,17,34,25,17,0,0,0,0,0,-10,-45,0,0,5,0,0,0,0,-61,-61,-60,-62,-45,0,0,0,0,0,0,0,-6,-7,-19,0,0]} 1. e4 {[%emt 0:00:03]} c5 {[%emt 0:00:06]} 2. Nf3 {[%emt 0:00:06]} e6 {[%emt 0:00:16]} 3. d4 {[%emt 0:00:05]} cxd4 {[%emt 0:00:07]} 4. Nxd4 {[%emt 0:00:05]} a6 {[%emt 0:00:20]} 5. Bd3 {[%emt 0:00:36]} Bc5 {[%emt 0:00:25]} 6. Nb3 {[%emt 0:00:23]} Ba7 {[%emt 0:00:15]} 7. Qe2 {[%emt 0:00:32]} Nc6 {[%emt 0:00:43]} 8. Be3 {[%emt 0:00:12]} Bxe3 {[%emt 0:01:16]} 9. Qxe3 {[%emt 0:00:05]} Nf6 {[%emt 0:00:34][%cal Bg8f6,Bf6d5,Bd5c3][%mdl 32] B42: Sicilian: Kan Variation: 5 Bd3.} 10. O-O {[%emt 0:01:22]} O-O {[%emt 0:01:55]} 11. Rd1 {[%emt 0:07:49]} d5 {[%emt 0:05:47]} 12. exd5 {[%emt 0:12:04]} Nxd5 {[%emt 0:05:52]} 13. Qg3 {[%emt 0:08:32] [#] Threatens to win with c4.} Qe7 {[%emt 0:24:18]} 14. Be4 {[%emt 0:05:52] [#]} Rd8 $146 {[%emt 0:05:37]} ({Predecessor:} 14... Nf6 15. Bxc6 bxc6 16. Nc3 Bb7 17. Na5 Rad8 18. Nxb7 Qxb7 19. b3 Qb4 20. a3 Rxd1+ 21. Rxd1 Qxa3 {1-0 (59) Bayod Rubia,A (2041)-Vera Jimenez,A (2014) Aragon 2009}) 15. Nc3 {[%emt 0:16:13]} Nxc3 $1 {[%emt 0:06:56]} 16. Qxc3 {[%emt 0:01:29]} Bd7 $1 {[%emt 0:03:05]} 17. Qc5 {[%emt 0:00:41] [#] Qxe7 is the strong threat.} Kf8 {[%emt 0:01:24]} (17... Qh4 {with more complications.} 18. Qe3 Be8 19. c3 Rxd1+ 20. Rxd1 Rd8) 18. Qe3 {[%emt 0:06:31]} (18. Bxh7 g6 19. Rd2 Qxc5 20. Nxc5 Be8 21. Rxd8 Nxd8 $17) 18... h6 {[%emt 0:02:19]} 19. Nc5 {[%emt 0:00:15]} Be8 {[%emt 0:00:50]} 20. c3 {[%emt 0:00:18]} a5 {[%emt 0:02:05]} 21. a3 {[%emt 0:01:29]} a4 {[%emt 0:06:35]} 22. Rxd8 {[%emt 0:05:33]} Nxd8 {[%emt 0:00:29]} 23. Rd1 {[%emt 0:02:06]} Nc6 {[%emt 0:07:34][%cal Bd8c6,Bc6a5,Ba5c4][%mdl 32]} 24. Nd3 {[%emt 0:10:02]} Rd8 {[%emt 0:01:35][%cal Oc6e5]} 25. Bf3 {[%emt 0:04:18]} Na5 {[%emt 0:02:30]} 26. Qb6 {[%emt 0:10:31]} (26. Ne5 $11) 26... Nc4 $15 {[%emt 0:07:14]} 27. Qxb7 {[%emt 0:00:05]} Qxb7 {[%emt 0:00:50]} 28. Bxb7 {[%emt 0:00:01]} Nxb2 {[%emt 0:05:47]} 29. Nxb2 {[%emt 0:00:15] The position is equal.} Rb8 {[%emt 0:00:05]} 30. Rd4 $1 {[%emt 0:01:16] Strongly threatening Rb4.} Rxb7 {[%emt 0:00:07]} 31. Rb4 {[%emt 0:00:06]} Rd7 {[%emt 0:01:18]} 32. h3 {[%emt 0:05:23]} Rd2 {[%emt 0:00:56]} 33. c4 {[%emt 0:00:06]} Rc2 {[%emt 0:00:51]} 34. Nxa4 {[%emt 0:01:36] Weighted Error Value: White=0.10 (very precise) /Black=0.07 (flawless)} 1/2-1/2

[Event "Mitropa Cup Open 2022"]
[Site "Corte"]
[Date "2022.05.07"]
[Round "8.5"]
[White "Dragnev, Valentin"]
[Black "Erdos, Viktor"]
[Result "1/2-1/2"]
[ECO "C95"]
[WhiteElo "2556"]
[BlackElo "2587"]
[Annotator "TA"]
[PlyCount "56"]
[EventDate "2022.04.30"]
[EventType "team-tourn"]
[EventCountry "FRA"]
[SourceTitle "playchess.com"]
[Source "ChessBase"]
[SourceQuality "1"]
[WhiteTeam "Austria"]
[BlackTeam "Hungary"]
[WhiteTeamCountry "AUT"]
[BlackTeamCountry "HUN"]
[TimeControl "40/5400+30:1800+30"]

{[%evp 30,56,26,5,25,25,25,24,24,17,20,19,14,14,16,-5,0,6,7,0,0,-16,0,0,0,-2,0,0,0]} 1. e4 {[%emt 0:00:02]} e5 {[%emt 0:05:28]} 2. Nf3 {[%emt 0:00:04]} Nc6 {[%emt 0:00:07]} 3. Bb5 {[%emt 0:00:07]} a6 {[%emt 0:00:11]} 4. Ba4 {[%emt 0:00:05]} Nf6 {[%emt 0:00:06]} 5. O-O {[%emt 0:00:07]} Be7 {[%emt 0:00:08]} 6. Re1 {[%emt 0:00:06]} b5 {[%emt 0:00:10]} 7. Bb3 {[%emt 0:00:02]} d6 {[%emt 0:00:08]} 8. c3 {[%emt 0:00:06]} O-O {[%emt 0:00:06]} 9. h3 {[%emt 0:00:04]} Nb8 {[%emt 0:00:09]} 10. d4 {[%emt 0:00:15]} Nbd7 {[%emt 0:00:05]} 11. Nbd2 {[%emt 0:00:18][%cal Bb1d2,Bd2f1,Bf1g3][%mdl 32]} Bb7 {[%emt 0:00:10]} 12. Bc2 {[%emt 0:00:39][%cal Bb3c2,Bc2d3,Bd3b5][%mdl 32]} Re8 {[%emt 0:00:11]} 13. Nf1 {[%emt 0:00:11]} Bf8 {[%emt 0:00:32]} 14. Ng3 {[%emt 0:00:10]} g6 {[%emt 0:01:01]} 15. a4 {[%emt 0:00:37]} Bg7 {[%emt 0:01:22]} 16. Bd3 {[%emt 0:00:24]} exd4 {[%emt 0:00:50] C95: Closed Ruy Lopez: Breyer Variation with 10 d4.} 17. cxd4 {[%emt 0:00:44]} c5 {[%emt 0:00:11]} 18. axb5 {[%emt 0:00:53]} axb5 {[%emt 0:00:15] White has an edge.} 19. Rxa8 {[%emt 0:01:11]} Bxa8 {[%emt 0:02:00] The position is equal.} 20. dxc5 {[%emt 0:00:17]} Nxc5 {[%emt 0:00:35]} 21. Bxb5 {[%emt 0:37:11]} Rf8 {[%emt 0:16:52][%cal Rc5e4] [#]} 22. Bg5 $146 {[%emt 0:02:43]} ({Predecessor:} 22. e5 dxe5 23. Qxd8 Rxd8 24. Nxe5 Nd5 25. Bc4 Re8 26. Nd3 Rxe1+ 27. Nxe1 Nb6 28. Ba2 {½-½ (60) So,W (2770)-Amin,B (2686) Chess.com INT 2020}) 22... Qb8 {[%emt 0:00:05]} 23. Bxf6 {[%emt 0:00:55]} Bxf6 {[%emt 0:06:13]} 24. Bc4 {[%emt 0:00:33]} Bxb2 {[%emt 0:19:54]} 25. Bd5 {[%emt 0:00:34]} Bxd5 {[%emt 0:02:14]} 26. Qxd5 {[%emt 0:13:24]} Ne6 {[%emt 0:25:30]} 27. Nf1 {[%emt 0:05:56]} Bg7 28. Rd1 {[%emt 0:05:36]} Qb4 {[%emt 0:04:24] A balanced but interesting game.  Weighted Error Value: White=0.06 (flawless) /Black=0.05 (flawless)} 1/2-1/2

[Event "Mitropa Cup Open 2022"]
[Site "Corte"]
[Date "2022.05.07"]
[Round "8.6"]
[White "Kozak, Adam"]
[Black "Blohberger, Felix"]
[Result "1-0"]
[ECO "E98"]
[WhiteElo "2532"]
[BlackElo "2510"]
[Annotator "TA"]
[PlyCount "85"]
[EventDate "2022.04.30"]
[EventType "team-tourn"]
[EventCountry "FRA"]
[SourceTitle "playchess.com"]
[Source "ChessBase"]
[SourceQuality "1"]
[WhiteTeam "Hungary"]
[BlackTeam "Austria"]
[WhiteTeamCountry "HUN"]
[BlackTeamCountry "AUT"]
[TimeControl "40/5400+30:1800+30"]

{[%evp 35,85,116,110,26,82,97,90,100,108,95,165,133,135,122,219,218,297,154,550,511,527,472,521,482,418,290,483,486,483,486,575,579,602,611,580,593,658,481,717,668,734,736,729,729,905,917,906,897,839,752,798,762]} 1. d4 {[%emt 0:07:05]} Nf6 {[%emt 0:00:07]} 2. c4 {[%emt 0:00:06]} g6 {[%emt 0:00:44]} 3. Nc3 {[%emt 0:00:29]} Bg7 {[%emt 0:00:05]} 4. e4 {[%emt 0:03:29]} d6 {[%emt 0:00:11]} 5. Nf3 {[%emt 0:00:41]} O-O {[%emt 0:00:06]} 6. Be2 {[%emt 0:00:04]} e5 {[%emt 0:00:03]} 7. O-O {[%emt 0:00:08]} Nc6 {[%emt 0:00:04]} 8. d5 {[%emt 0:01:53]} Ne7 {[%emt 0:00:06]} 9. Ne1 {[%emt 0:00:13]} Nd7 {[%emt 0:00:45]} 10. Be3 {[%emt 0:00:18]} f5 {[%emt 0:00:16]} 11. f3 {[%emt 0:00:08]} f4 {[%emt 0:00:47]} 12. Bf2 {[%emt 0:00:05]} g5 {[%emt 0:00:33][%cal Bg6g5,Bg5g4][%mdl 32]} 13. a4 {[%emt 0:00:11]} Nf6 {[%emt 0:13:33]} 14. c5 {[%emt 0:05:32]} Ng6 {[%emt 0:00:19]} 15. a5 {[%emt 0:05:32]} h5 {[%emt 0:11:28]} 16. cxd6 {[%emt 0:01:43]} cxd6 {[%emt 0:01:10]} 17. Nb5 {[%emt 0:03:50]} g4 {[%emt 0:01:37]} 18. Nxa7 {[%emt 0:19:25]} Bd7 {[%emt 0:18:40]} 19. Nb5 {[%emt 0:06:09] [#] E99: King's Indian: Classical Main Line: 9 Ne1 Nd7 10 f3 f5.} (19. Bb6 $16 Qe8 20. Qb3) 19... Ne8 $146 {[%emt 0:04:55]} (19... Bxb5 $11 20. Bxb5 Rxa5 21. Rxa5 Qxa5) ({Predecessor:} 19... g3 20. hxg3 fxg3 21. Bxg3 h4 22. Bh2 Rxa5 23. Rxa5 Qxa5 24. Na3 Nh5 25. Nd3 Qb6+ 26. Rf2 Qd8 {1-0 (59) Law,N-Wolfram,K (2001) Mureck 2005}) 20. Nc3 {[%emt 0:21:16][%cal Rf3g4] White is more active.} g3 {[%emt 0:07:18]} 21. hxg3 {[%emt 0:00:13] White is better.} fxg3 {[%emt 0:00:13]} 22. Bxg3 {[%emt 0:00:06][%cal Bf2g3,Bg3h2,Bh2g1][%mdl 32]} Qg5 {[%emt 0:09:51]} (22... h4 $16 23. Bf2 Nf4) 23. Bh2 {[%emt 0:00:29]} Nf6 {[%emt 0:04:17]} 24. Nd3 {[%emt 0:05:09]} Qe3+ {[%emt 0:04:44]} (24... Bh6 $16 25. Qb3 Nh4) 25. Kh1 $18 {[%emt 0:03:23]} h4 {[%emt 0:02:45] [#]} 26. Qc1 {[%emt 0:07:15]} ({White has to play} 26. Nf4 $1 $18 {[%mdl 512]} Ne7 {[#]} (26... Nxf4 27. Bg1) 27. Re1 $1) 26... Qd4 $2 {[%emt 0:00:32]} (26... Qxc1 $16 {is tougher.} 27. Nxc1 (27. Rfxc1 Bh6 $16) 27... Rfc8) 27. Bg1 {[%emt 0:01:25]} Nh5 {[%emt 0:00:04]} 28. Qd2 {[%emt 0:04:17]} Ng3+ {[%emt 0:01:19]} 29. Kh2 {[%emt 0:00:01]} Qc4 {[%emt 0:01:53]} 30. Nf4 {[%emt 0:00:20]} Bh6 $2 {[%emt 0:02:55] [#]} (30... Nxe2 31. Nxg6 (31. Qxe2 Qxe2 32. Nfxe2 Bh6 $18) 31... Ng3) 31. Nxg6 $1 {[%emt 0:01:39][%mdl 512] White is clearly winning.} Bxd2 {[%emt 0:02:53]} 32. Bxc4 {[%emt 0:00:03]} Nxf1+ {[%emt 0:00:45]} 33. Bxf1 {[%emt 0:00:30]} Rf6 {[%emt 0:00:09]} 34. Nxh4 {[%emt 0:01:20]} Bg5 {[%emt 0:01:22]} 35. Bf2 {[%emt 0:00:58]} Rf4 {[%emt 0:00:06]} 36. g3 {[%emt 0:00:53]} Rf6 {[%emt 0:00:13]} (36... Bxh4 $142 37. Be2 Bxg3+ 38. Bxg3 Rf6) 37. Be2 {[%emt 0:00:21]} Kf7 {[%emt 0:01:12]} 38. Nf5 {[%emt 0:00:42]} Rh8+ {[%emt 0:01:40]} 39. Kg2 {[%emt 0:00:52]} Bxf5 {[%emt 0:00:06]} 40. exf5 {[%emt 0:00:04]} Rfh6 {[%emt 0:00:19]} 41. Bg1 {[%emt 0:31:30]} Rh1 {[%emt 0:30:10]} 42. Nd1 {[%emt 0:00:00]} Bd2 {[%emt 0:00:00]} 43. Nf2 {[%emt 0:00:00] Black did not feel at home in the position after the opening.  Weighted Error Value: White=0.54/Black=0.78} 1-0

[Event "Mitropa Cup Open 2022"]
[Site "Corte"]
[Date "2022.05.07"]
[Round "8.7"]
[White "Diermair, Andreas"]
[Black "Nemeth, Miklos"]
[Result "1/2-1/2"]
[ECO "E19"]
[WhiteElo "2461"]
[BlackElo "2446"]
[Annotator "TA"]
[PlyCount "87"]
[EventDate "2022.04.30"]
[EventType "team-tourn"]
[EventCountry "FRA"]
[SourceTitle "playchess.com"]
[Source "ChessBase"]
[SourceQuality "1"]
[WhiteTeam "Austria"]
[BlackTeam "Hungary"]
[WhiteTeamCountry "AUT"]
[BlackTeamCountry "HUN"]
[TimeControl "40/5400+30:1800+30"]

{[%evp 20,87,29,14,33,38,30,19,31,28,30,18,103,98,183,197,171,167,184,96,89,43,53,41,35,23,20,0,40,33,55,56,81,52,120,118,150,122,166,116,128,102,118,135,136,109,114,122,115,116,133,95,108,99,108,87,91,11,11,0,0,0,0,0,0,0,0,0,0,0]} 1. Nf3 {[%emt 0:00:03]} Nf6 {[%emt 0:00:05]} 2. c4 {[%emt 0:00:05]} b6 {[%emt 0:00:03]} 3. g3 {[%emt 0:00:35]} Bb7 {[%emt 0:00:03]} 4. Bg2 {[%emt 0:00:04]} e6 {[%emt 0:00:03]} 5. O-O {[%emt 0:00:25]} Be7 {[%emt 0:00:02]} 6. d4 {[%emt 0:00:16]} O-O {[%emt 0:00:07]} 7. Nc3 {[%emt 0:00:09]} Ne4 {[%emt 0:00:06]} 8. Qc2 {[%emt 0:00:07]} Nxc3 {[%emt 0:00:13]} 9. Qxc3 {[%emt 0:00:03]} c5 {[%emt 0:00:45]} 10. Rd1 {[%emt 0:00:09]} Bf6 {[%emt 0:05:50]} 11. Qd3 {[%emt 0:00:46][%cal Of3g5] Hoping for Ng5!} d5 {[%emt 0:03:17] E19: Queen's Indian: Old Main Line with 7...Ne4 8 Qc2 Nxc3 8 Qxc3.} 12. cxd5 {[%emt 0:02:58]} exd5 {[%emt 0:00:11]} 13. h4 {[%emt 0:04:59]} h6 {[%emt 0:00:30]} 14. dxc5 {[%emt 0:06:13]} bxc5 {[%emt 0:03:21]} 15. Nh2 {[%emt 0:01:26] [#]} Na6 $146 {[%emt 0:03:53]} (15... Qc8 $11) ({Predecessor:} 15... Qc8 16. Bf3 Nc6 17. Ng4 Be7 18. Bxh6 Nd4 19. Bf4 Re8 20. Rac1 a5 21. Ne5 Nxf3+ 22. Nxf3 {0-1 (61) Suffield,M (2108)-Graham,O (2187) ICCF email 2018}) 16. Ng4 $16 {[%emt 0:04:57]} (16. Bxd5 $2 Nb4 $1 17. Qf3 Nxd5 $19) 16... Re8 {[%emt 0:03:49]} (16... Qb6 $16) 17. Qb5 $18 {[%emt 0:12:19]} (17. Bxd5 Bxd5 18. Qxd5 Be7 $16) 17... Qb6 {[%emt 0:01:26]} 18. Nxf6+ {[%emt 0:03:25]} gxf6 {[%emt 0:00:07]} 19. Qa4 {[%emt 0:04:30]} ({White should play} 19. Qd3 $18) 19... d4 $16 {[%emt 0:01:15] [#]} 20. Qd7 {[%emt 0:03:26]} (20. Bxh6 $6 Bxg2 21. Kxg2 Qb7+ 22. e4 f5 $11) ({White should try} 20. Bxb7 $1 $16 Qxb7 21. Qc4) 20... Bxg2 $14 {[%emt 0:00:59]} 21. Qg4+ {[%emt 0:00:16]} Kh7 {[%emt 0:00:39]} 22. Qf5+ {[%emt 0:00:11]} Kg7 {[%emt 0:00:09] aiming for ...Bb7.} 23. Qg4+ {[%emt 0:00:05]} Kh7 $1 {[%emt 0:00:04] White must now prevent ...Qc6.} ({Don't play} 23... Kh8 24. Kxg2 Qc6+ 25. Qf3 $14) 24. Kxg2 {[%emt 0:03:34]} Qe6 {[%emt 0:00:54]} 25. Qh5 {[%emt 0:05:32]} f5 {[%emt 0:04:46]} 26. Bf4 {[%emt 0:04:51]} Rad8 {[%emt 0:02:09]} (26... Nb4 $14) 27. Rac1 $16 {[%emt 0:01:47]} Rd7 {[%emt 0:00:35]} 28. Rd2 {[%emt 0:03:47]} Qd5+ {[%emt 0:02:28]} 29. Qf3 {[%emt 0:07:36]} ({Inferior is} 29. e4 Qxe4+ 30. f3 Qe6 $11) (29. Kh2 $18 Qe6 30. e3) 29... Re4 {[%emt 0:01:05]} 30. b3 {[%emt 0:00:41]} Nb4 {[%emt 0:07:26]} 31. a3 {[%emt 0:03:35]} Na6 {[%emt 0:00:05]} 32. Kg1 {[%emt 0:00:53]} Nc7 {[%emt 0:14:59]} 33. Bxc7 {[%emt 0:02:07]} Rxc7 {[%emt 0:00:09]} 34. Rdc2 {[%emt 0:02:18]} Kg7 {[%emt 0:01:10]} 35. Rc4 {[%emt 0:02:58]} Qe6 {[%emt 0:02:14]} 36. R1c2 {[%emt 0:04:37][%cal Bc1c2,Bc2d2,Bd2d3][%mdl 32]} Rb7 {[%emt 0:04:39][%cal Of5f4]} 37. Kf1 {[%emt 0:06:43]} ({Don't do} 37. Rxc5 Rxb3 38. Qxf5 Rxa3 $14) 37... Rb6 {[%emt 0:03:03] [#]} 38. a4 {[%emt 0:02:55]} (38. b4 $1 $16) 38... Re5 $11 {[%emt 0:00:54] The position is equal.} 39. Kg2 {[%emt 0:02:33]} Qe7 {[%emt 0:00:55]} 40. Kf1 {[%emt 0:01:52]} a5 {[%emt 0:06:35]} 41. Rd2 {[%emt 0:06:14]} Qd6 {[%emt 0:03:39]} 42. Rd3 {[%emt 0:03:42]} Qe6 {[%emt 0:01:51][%cal Ob6b3]} 43. Rc2 {[%emt 0:02:34]} Rb4 {[%emt 0:01:35]} 44. Rc1 {[%emt 0:06:04] Black defended with fortune.  Weighted Error Value: White=0.15 (very precise) /Black=0.14 (very precise)} 1/2-1/2